bitfinex-derivatives/quotes_BNBF0:USTF0_20241230
["timestamp","ask_amount","ask_price","bid_price","bid_amount"]
[1735547509787,0.28701404,696.83,695.83,0.56327806]
[1735547510089,0.28701404,696.83,695.84,0.56327806]
[1735547510287,0.28701404,696.83,695.85,0.56327806]
[1735547510481,0.28701404,696.83,695.86,0.56327806]
[1735547510682,0.28701404,696.83,695.87,0.56327806]
[1735547510883,0.28701404,696.83,695.88,0.56327806]
[1735547511088,0.28701404,696.83,695.89,0.56327806]
[1735547511283,0.28701404,696.83,695.9,0.56327806]
[1735547511482,0.28701404,696.83,695.91,0.56327806]
[1735547511681,0.28701404,696.83,695.92,0.56327806]
[1735547511886,0.28701404,696.83,695.93,0.56327806]
[1735547512183,0.28701404,696.83,695.62,1.06883765]
[1735547512184,0.28701404,696.83,695.94,0.56327806]
[1735547512387,0.28701404,696.83,695.34,1.07367643]
[1735547512388,0.28701404,696.83,695.95,0.56327806]
[1735547512582,0.28701404,696.83,695.96,0.56327806]
[1735547512783,0.28701404,696.83,695.97,0.56327806]
[1735547512986,0.28701404,696.83,695.98,0.56327806]
[1735547513183,0.28701404,696.83,695.99,0.56327806]
[1735547513387,0.28701404,696.83,696.0,0.56327806]
[1735547513683,0.28701404,696.83,696.01,0.56327806]
[1735547513883,0.28701404,696.83,696.02,0.56327806]
[1735547514090,0.28701404,696.83,696.03,0.56327806]
[1735547514290,0.28701404,696.83,696.04,0.56327806]
[1735547514485,0.28701404,696.83,696.05,0.56327806]
[1735547514693,1.36076111,696.83,696.06,0.56327806]
[1735547514894,1.36076111,696.83,696.07,0.56327806]
[1735547515091,0.26430617,696.82,696.08,0.56327806]
[1735547515393,0.26430617,696.82,696.09,0.56370671]
[1735547515692,1.36076111,696.83,696.09,0.56370671]
[1735547515693,1.07374707,696.81,696.09,0.56370671]
[1735547516295,0.2643039,696.8,695.78,1.06883765]
[1735547516493,1.07374707,696.81,695.78,1.06883765]
[1735547516793,0.26431148,696.8,695.79,0.56370998]
[1735547517093,1.07374707,696.8,695.8,0.56370998]
[1735547517294,0.26431505,696.79,695.81,0.56370998]
[1735547517493,0.26431505,696.79,695.82,0.56370998]
[1735547517693,1.07374707,696.8,695.83,0.56370998]
[1735547517894,0.2643144,696.79,695.84,0.56370998]
[1735547518092,1.07374707,696.8,695.85,0.56370998]
[1735547518395,1.07374707,696.76,695.86,0.56369443]
[1735547518592,1.07374707,696.76,695.76,1.06883765]
[1735547518593,1.07374707,696.76,695.87,0.56369443]
[1735547518889,1.07374707,696.76,695.76,1.06883765]
[1735547519095,1.07374707,696.76,695.77,0.56366891]
[1735547519394,1.07374707,696.82,695.78,0.56366891]
[1735547519594,0.26431856,696.81,695.79,0.56366891]
[1735547519795,0.26431856,696.81,695.8,0.56366891]
[1735547519989,0.26431856,696.81,695.81,0.56366891]
[1735547520192,0.26431856,696.81,695.82,0.56366891]
[1735547520395,0.26431856,696.81,695.83,0.56366891]
[1735547520591,1.07374707,696.78,695.84,0.56366891]
[1735547520792,0.28704288,696.76,695.85,0.56366891]
[1735547520989,0.28704288,696.76,695.86,0.56366891]
[1735547521189,0.28704288,696.76,695.87,0.56366891]
[1735547521390,0.28704288,696.76,695.88,0.56366891]
[1735547521593,0.28704288,696.76,695.89,0.56366891]
[1735547521895,0.28704288,696.76,695.9,0.56366891]
[1735547522091,0.28704288,696.76,695.91,0.56366891]
[1735547522289,0.28704288,696.76,695.92,0.56366891]
[1735547522492,0.28704288,696.76,695.93,0.56366891]
[1735547522693,0.28704288,696.76,695.94,0.56366891]
[1735547522888,0.28704288,696.76,695.95,0.56366891]
[1735547523092,0.28704288,696.76,695.96,0.56366891]
[1735547523295,0.28704288,696.76,695.97,0.56366891]
[1735547523490,0.28704288,696.76,695.71,1.06883765]
[1735547523689,0.28704288,696.76,695.72,0.56387857]
[1735547523895,0.28704288,696.76,695.73,0.56387857]
[1735547524100,0.28704288,696.76,695.74,0.56387857]
[1735547524298,0.28704288,696.76,695.75,0.56387857]
[1735547524496,0.28704288,696.76,695.76,0.56387857]
[1735547524694,0.28704288,696.76,695.77,0.56387857]
[1735547524897,0.28704288,696.76,695.78,0.56387857]
[1735547525200,0.28704288,696.76,695.19,1.28841171]
[1735547525201,0.28704288,696.76,695.79,0.56387857]
[1735547525392,0.28704288,696.76,695.8,0.56387857]
[1735547525595,0.28704288,696.76,695.81,0.56387857]
[1735547525794,0.28704288,696.76,695.82,0.56387857]
[1735547525997,0.28704288,696.76,695.83,0.56387857]
[1735547526197,0.28704288,696.76,695.84,0.56387857]
[1735547526399,0.28704288,696.76,695.85,0.56387857]
[1735547526596,0.28704288,696.76,695.86,0.56417577]
[1735547526797,0.28704288,696.76,695.87,0.56417577]
[1735547526995,0.28704288,696.76,695.88,0.56417577]
[1735547527198,0.28704288,696.76,695.89,0.56417577]
[1735547527402,0.28704288,696.76,695.9,0.56417577]
[1735547527602,0.28704288,696.76,695.91,0.56417577]
[1735547527899,0.28704288,696.76,695.92,0.56417577]
[1735547528197,0.28704288,696.76,695.93,0.56417577]
[1735547528407,0.28704288,696.76,695.94,0.56417577]
[1735547528604,0.28704288,696.76,695.95,0.56417577]
[1735547528897,0.28704288,696.76,695.96,0.56417577]
[1735547529102,0.28704288,696.76,695.97,0.56417577]
[1735547529303,0.26432728,696.75,695.98,0.56417577]
[1735547529502,1.07374707,696.71,695.99,0.56417577]
[1735547529703,1.07374707,696.71,696.0,0.5643556]
[1735547529899,1.07374707,696.71,696.01,0.5643556]
[1735547530099,1.07374707,696.71,696.02,0.5643556]
[1735547530297,1.07374707,696.71,696.03,0.5643556]
[1735547530504,1.07374707,696.75,696.04,0.5643556]
[1735547530802,0.26438921,696.74,696.05,0.5643556]
[1735547531003,0.26438921,696.74,696.06,0.5643556]
[1735547531204,0.26438921,696.74,695.53,1.06883765]
[1735547531205,0.28705524,696.73,696.07,0.5643556]
[1735547531404,0.26441829,696.72,695.53,1.06883765]
[1735547531602,0.26441829,696.72,695.54,0.5645912]
[1735547531803,0.26442279,696.71,695.55,0.5645912]
[1735547532003,0.55149039,696.7,695.56,0.5645912]
[1735547532204,0.28707584,696.68,695.57,0.5645912]
[1735547532403,0.26442967,696.67,695.58,0.5645912]
[1735547532600,0.26442967,696.67,695.59,0.5645912]
[1735547532805,0.26442967,696.67,695.6,0.56419609]
[1735547533104,0.28707584,696.68,695.61,0.56419609]
[1735547533404,0.28707584,696.68,695.22,1.06883765]
[1735547533405,0.26442898,696.67,695.62,0.56419609]
[1735547533703,0.2870882,696.65,695.63,0.56419609]
[1735547533905,0.2870882,696.65,695.64,0.56419609]
[1735547534104,0.2870882,696.65,695.65,0.56419609]
[1735547534403,0.2870882,696.65,695.66,0.56419609]
[1735547534598,0.2870882,696.65,695.67,0.56419609]
[1735547534801,0.2870882,696.65,695.68,0.56419609]
[1735547535001,0.2870882,696.65,695.69,0.56419609]
[1735547535303,0.2870882,696.65,695.7,0.56419609]
[1735547535503,0.2870882,696.65,694.51,1.28841171]
[1735547535504,0.2870882,696.65,695.71,0.56419609]
[1735547535703,0.2870882,696.65,695.15,1.06883765]
[1735547535902,0.2870882,696.65,695.16,0.56394514]
[1735547536102,0.2870882,696.65,695.17,0.56394514]
[1735547536297,0.2870882,696.65,694.48,1.28841171]
[1735547536298,0.2870882,696.65,695.14,1.06883765]
[1735547536501,0.2870882,696.65,695.15,0.56405374]
[1735547536698,0.2870882,696.65,695.16,0.56405374]
[1735547536902,0.2870882,696.65,695.17,0.56405374]
[1735547537099,0.2870882,696.65,695.18,0.56405374]
[1735547537305,0.2870882,696.65,695.19,0.56405374]
[1735547537503,0.2870882,696.65,695.2,0.56405374]
[1735547537704,0.2870882,696.65,695.21,0.56405374]
[1735547538005,0.2870882,696.65,695.22,0.56405374]
[1735547538205,0.2870882,696.65,695.23,0.56405374]
[1735547538405,0.2870882,696.65,695.24,0.56405374]
[1735547538704,0.2870882,696.65,695.25,0.56405374]
[1735547538902,0.2870882,696.65,695.26,0.56405374]
[1735547539206,0.2870882,696.65,695.27,0.56405374]
[1735547539400,0.2870882,696.65,695.28,0.56405374]
[1735547539603,0.2870882,696.65,695.29,0.56405374]
[1735547539803,0.2870882,696.65,695.3,0.56405374]
[1735547540004,0.2870882,696.65,695.35,1.06883765]
[1735547540204,0.26435535,696.64,695.36,0.56405374]
[1735547540398,0.26435535,696.64,695.37,0.56405374]
[1735547540600,0.28710057,696.62,695.38,0.56405374]
[1735547540801,0.26435613,696.61,695.39,0.56405374]
[1735547541000,0.28711293,696.59,695.4,0.56405374]
[1735547541306,0.26436448,696.58,695.47,1.06883765]
[1735547541500,0.26436448,696.58,695.48,0.56405374]
[1735547541699,0.26436448,696.58,695.47,1.06883765]
[1735547541902,0.26436448,696.58,695.48,0.56381703]
[1735547542107,0.26436448,696.58,695.49,0.56381703]
[1735547542301,0.2871253,696.56,695.5,0.56381703]
[1735547542501,0.2871253,696.56,695.51,0.56381703]
[1735547542703,0.2871253,696.56,695.52,0.56381703]
[1735547542903,0.2871253,696.56,695.53,0.56381703]
[1735547543106,0.2871253,696.56,695.54,0.56381703]
[1735547543303,0.2871253,696.56,695.28,1.07367643]
[1735547543304,0.2871253,696.56,695.55,0.56381703]
[1735547543607,0.2871253,696.56,695.56,0.56381703]
[1735547543901,0.2871253,696.56,695.57,0.56381703]
[1735547544101,0.2871253,696.56,695.58,0.56381703]
[1735547544308,0.2871253,696.56,695.59,0.56381703]
[1735547544503,0.2871253,696.56,695.6,0.56381703]
[1735547544702,0.2871253,696.56,695.61,0.56381703]
[1735547544901,0.2871253,696.56,695.62,0.56381703]
[1735547545101,0.2871253,696.56,695.43,1.06883765]
[1735547545309,0.2871253,696.56,695.44,0.56380506]
[1735547545501,0.2871253,696.56,695.45,0.56380506]
[1735547545702,0.2871253,696.56,695.46,1.63263318]
[1735547546008,0.2871253,696.56,695.47,0.56379553]
[1735547546202,0.2871253,696.56,695.48,0.56379553]
[1735547546402,0.2871253,696.56,695.49,0.56379553]
[1735547546604,0.2871253,696.56,695.5,0.56379553]
[1735547546804,0.2871253,696.56,695.51,0.56379553]
[1735547547005,0.2871253,696.56,695.52,0.56379553]
[1735547547205,0.2871253,696.56,695.53,0.56379553]
[1735547547401,0.2871253,696.56,695.54,0.56379553]
[1735547547607,0.2871253,696.56,695.55,0.56379553]
[1735547547809,0.2871253,696.56,695.56,0.56379553]
[1735547548001,0.2871253,696.56,695.57,0.56379553]
[1735547548208,0.2871253,696.56,695.58,0.56379716]
[1735547548408,0.2871253,696.56,695.59,0.56379716]
[1735547548708,0.2871253,696.56,695.6,0.56379716]
[1735547548902,0.2871253,696.56,695.61,0.56379716]
[1735547549106,0.2871253,696.56,695.62,0.56379716]
[1735547549307,0.2871253,696.56,695.63,0.56379716]
[1735547549505,0.2871253,696.56,695.64,0.56379716]
[1735547549705,0.2871253,696.56,695.65,0.56379716]
[1735547549902,0.2871253,696.56,695.66,0.56379716]
[1735547550209,0.2871253,696.56,695.67,0.56379716]
[1735547550408,0.2871253,696.56,695.68,0.56379716]
[1735547550607,0.2871253,696.56,695.69,0.56379716]
[1735547550808,0.2871253,696.56,695.7,0.56379716]
[1735547551002,0.2871253,696.56,695.71,0.56379716]
[1735547551207,0.2871253,696.56,695.09,1.06883765]
[1735547551507,0.2871253,696.56,695.1,0.56372052]
[1735547551707,0.2871253,696.56,695.11,0.56372052]
[1735547551903,0.2871253,696.56,695.12,0.56372052]
[1735547552102,0.2871253,696.56,695.13,0.56372052]
[1735547552307,0.2871253,696.56,695.14,0.56372052]
[1735547552509,0.2871253,696.56,695.15,0.56372052]
[1735547552710,0.2871253,696.56,695.22,1.06883765]
[1735547552910,0.2871253,696.56,695.23,0.56372052]
[1735547553110,0.2871253,696.56,695.24,0.56372052]
[1735547553311,0.2871253,696.56,695.25,0.56372052]
[1735547553511,0.2871253,696.56,695.26,0.56372052]
[1735547553712,0.2871253,696.56,695.27,0.56372052]
[1735547554011,0.2871253,696.56,695.22,1.06883765]
[1735547554012,0.2871253,696.56,695.28,0.56372052]
[1735547554215,0.2871253,696.56,695.29,0.56372052]
[1735547554416,0.2871253,696.56,695.3,0.56372052]
[1735547554613,0.2871253,696.56,695.31,0.56372052]
[1735547554814,0.2871253,696.56,695.32,0.56372052]
[1735547555009,0.2871253,696.56,694.61,1.28841171]
[1735547555010,0.2871253,696.56,695.33,0.56368085]
[1735547555214,0.2871253,696.56,695.34,0.56368085]
[1735547555411,0.2871253,696.56,695.35,0.56368085]
[1735547555616,0.2871253,696.56,695.36,0.56368085]
[1735547555813,0.2871253,696.56,695.37,0.56368085]
[1735547556013,0.2871253,696.56,695.38,0.56368085]
[1735547556220,0.26442703,696.55,695.39,0.56368085]
[1735547556519,0.28713766,696.53,695.4,0.56368085]
[1735547556718,0.28713766,696.53,695.41,0.56366371]
[1735547556914,0.28713766,696.53,695.42,0.56366371]
[1735547557118,0.264427,696.52,695.43,0.56366371]
[1735547557319,0.28713766,696.53,695.44,0.56366371]
[1735547557514,0.28713766,696.53,695.26,1.06883765]
[1735547557719,0.28713766,696.53,695.27,0.56366371]
[1735547557920,0.28713766,696.53,695.28,0.56366371]
[1735547558121,0.28713766,696.53,695.29,0.56366371]
[1735547558421,0.28713766,696.53,695.3,0.56366371]
[1735547558620,0.28713766,696.53,695.31,0.56366371]
[1735547558820,0.28713766,696.53,695.32,0.56366371]
[1735547559121,0.28713766,696.53,695.33,0.56366371]
[1735547559321,0.28713766,696.53,695.34,0.56366371]
[1735547559519,0.28713766,696.53,695.35,0.56366371]
[1735547559720,0.28713766,696.53,695.36,0.56366371]
[1735547559920,0.28713766,696.53,695.37,0.56366371]
[1735547560116,0.28713766,696.53,695.38,0.56366371]
[1735547560317,0.28713766,696.53,695.39,0.56366371]
[1735547560519,0.28713766,696.53,695.4,0.56366371]
[1735547560817,0.28713766,696.53,695.41,0.56366371]
[1735547561018,0.28713766,696.53,695.42,0.56366371]
[1735547561217,0.28713766,696.53,695.43,0.56366371]
[1735547561417,0.28713766,696.53,695.44,0.56366371]
[1735547561620,0.28713766,696.53,695.45,0.56366371]
[1735547561816,0.28713766,696.53,695.46,0.56366371]
[1735547562020,0.28713766,696.53,695.47,0.56366371]
[1735547562220,0.28713766,696.53,695.48,0.56366371]
[1735547562421,0.28713766,696.53,694.87,1.07367643]
[1735547562422,0.28713766,696.53,695.49,0.56366371]
[1735547562619,0.28713766,696.53,695.5,0.56366371]
[1735547562924,0.28713766,696.53,695.51,0.56366371]
[1735547563124,0.28713766,696.53,695.52,0.56366371]
[1735547563423,0.28713766,696.53,695.53,0.56366371]
[1735547563626,0.28713766,696.53,695.54,0.563815]
[1735547563824,0.28713766,696.53,695.55,0.563815]
[1735547564017,0.28713766,696.53,695.56,0.563815]
[1735547564323,0.28713766,696.53,695.57,0.56380026]
[1735547564522,0.28713766,696.53,695.58,0.56380026]
[1735547564723,0.28713766,696.53,695.59,0.56380026]
[1735547564924,0.28713766,696.53,695.6,0.56380026]
[1735547565125,0.28713766,696.53,695.61,0.56380026]
[1735547565425,0.28713766,696.53,695.62,0.56380026]
[1735547565625,0.28713766,696.53,695.63,0.56380026]
[1735547565820,0.28713766,696.53,695.64,0.56380026]
[1735547566020,0.28713766,696.53,695.65,0.56380026]
[1735547566220,0.28713766,696.53,695.66,0.56380026]
[1735547566422,0.28713766,696.53,695.67,0.56380026]
[1735547566625,0.28713766,696.53,695.68,0.56380026]
[1735547566819,0.28713766,696.53,695.69,0.56380026]
[1735547567018,0.28713766,696.53,695.7,0.56380026]
[1735547567221,0.28713766,696.53,695.71,0.56380026]
[1735547567426,0.26444624,696.52,695.72,0.56380026]
[1735547567626,0.28713766,696.53,695.21,1.06883765]
[1735547567627,0.28714591,696.51,695.73,0.56380026]
[1735547567829,0.28714591,696.51,695.74,0.56380026]
[1735547568029,0.28714591,696.51,695.75,0.56380026]
[1735547568326,0.28714591,696.51,695.23,1.06883765]
[1735547568327,0.28714591,696.51,695.76,0.56380026]
[1735547568520,0.28714591,696.51,695.77,0.56380026]
[1735547568725,0.28714591,696.51,695.78,0.56380026]
[1735547568926,0.28714591,696.51,695.79,0.56380026]
[1735547569224,0.28714591,696.51,695.8,0.56380026]
[1735547569423,0.28714591,696.51,695.81,0.56380026]
[1735547569622,0.28714591,696.51,695.23,1.06883765]
[1735547569825,0.28714591,696.51,695.24,0.56407477]
[1735547570022,0.26447986,696.5,695.25,0.56407477]
[1735547570328,0.26447986,696.5,695.26,0.56407477]
[1735547570628,0.26447986,696.5,695.23,1.06883765]
[1735547570629,0.26448407,696.49,695.27,0.56407477]
[1735547570927,0.26448407,696.48,695.28,0.56407477]
[1735547571129,0.26448171,696.5,695.29,0.56407477]
[1735547571328,0.26448171,696.49,695.3,0.56407477]
[1735547571627,0.26448005,696.48,695.31,0.56407477]
[1735547571829,0.26448005,696.48,694.59,1.28841171]
[1735547571830,0.26448005,696.47,695.32,0.56407477]
[1735547572025,0.26448005,696.46,695.33,0.56407477]
[1735547572223,0.26448005,696.45,695.34,0.56407477]
[1735547572425,0.26448005,696.44,695.35,0.56407477]
[1735547572729,0.28714591,696.51,695.36,0.56407057]
[1735547572929,0.26447976,696.5,695.37,0.56407057]
[1735547573129,0.26447994,696.49,695.38,0.56407057]
[1735547573431,0.26447994,696.48,695.39,0.56412695]
[1735547573629,0.26447994,696.47,695.4,0.56412695]
[1735547573829,0.26447994,696.46,695.41,0.56412695]
[1735547574029,0.28714591,696.51,695.42,0.56412695]
[1735547574228,0.26447976,696.5,695.43,0.56412695]
[1735547574529,0.26447976,696.5,695.44,0.56412695]
[1735547574730,0.26447976,696.5,695.45,0.56412695]
[1735547574931,0.28714591,696.51,695.46,0.56412695]
[1735547575127,0.26450724,696.5,693.99,4.39588427]
[1735547575328,0.26450724,696.5,694.0,4.11947533]
[1735547575625,0.28714591,696.51,694.01,2.25635816]
[1735547575830,0.26450831,696.5,694.02,0.56417035]
[1735547576030,0.26450831,696.5,694.03,0.56409581]
[1735547576230,0.26450831,696.5,694.04,0.56409581]
[1735547576431,0.26450831,696.5,694.05,0.56409581]
[1735547576729,0.26450831,696.5,694.06,0.56409581]
[1735547576925,0.26450831,696.5,694.07,0.56409581]
[1735547577130,0.26450831,696.5,694.08,0.56409581]
[1735547577325,0.26450831,696.5,694.09,0.56409581]
[1735547577532,0.26450831,696.5,694.1,0.56409581]
[1735547577833,0.26450831,696.5,694.11,0.56409581]
[1735547578031,0.26450831,696.5,694.9,1.07441524]
[1735547578230,0.26452771,696.49,694.91,0.56409581]
[1735547578430,0.26452771,696.48,694.92,0.56409581]
[1735547578624,0.26452771,696.47,694.93,0.56409581]
[1735547578825,0.26452262,696.46,694.94,0.56409581]
[1735547579025,0.26452262,696.45,694.95,0.56409581]
[1735547579225,0.28714591,696.51,694.96,0.56394622]
[1735547579226,0.26452262,696.44,694.96,0.56394622]
[1735547579430,0.26452262,696.43,694.97,0.56394622]
[1735547579631,0.26452262,696.42,694.98,0.56394622]
[1735547579933,0.26452262,696.41,694.99,0.56394622]
[1735547580135,0.26452262,696.4,695.0,0.56394622]
[1735547580328,0.26452262,696.39,695.01,0.56394622]
[1735547580532,0.26452262,696.38,695.02,0.56394622]
[1735547580732,0.26451535,696.37,695.03,0.56394622]
[1735547580934,0.26451535,696.36,695.05,1.07441524]
[1735547581135,0.26451535,696.35,695.06,0.56394622]
[1735547581333,0.26451535,696.35,695.05,1.07441524]
[1735547581334,0.26451535,696.34,695.05,1.07441524]
[1735547581529,0.26451535,696.33,695.06,0.56390216]
[1735547581836,0.26451535,696.32,695.07,0.56390216]
[1735547582139,0.26451535,696.31,695.08,0.56389934]
[1735547582431,1.07116817,696.42,695.09,0.56389934]
[1735547582636,0.26449633,696.41,695.1,0.56389934]
[1735547582831,1.07116817,696.42,695.11,0.56389934]
[1735547583138,1.07116817,696.48,695.12,0.56389934]
[1735547583333,1.07116817,696.48,695.13,0.56389934]
[1735547583531,1.07116817,696.48,695.14,0.56389934]
[1735547583729,1.07116817,696.48,695.15,0.56389934]
[1735547583930,1.07116817,696.48,695.16,0.56389934]
[1735547584134,0.28714591,696.51,695.17,0.56389934]
[1735547584435,0.28714591,696.51,695.18,0.56396268]
[1735547584635,0.28714591,696.51,695.19,0.56396268]
[1735547584837,0.28714591,696.51,695.2,0.56396268]
[1735547585036,0.28714591,696.51,695.21,0.56396268]
[1735547585231,0.28714591,696.51,695.22,0.56396268]
[1735547585434,0.28714591,696.51,695.23,0.56396268]
[1735547585630,0.28714591,696.51,695.24,0.56396268]
[1735547585837,0.26448214,696.5,695.25,0.56396268]
[1735547586034,0.26448214,696.5,695.26,0.56396268]
[1735547586235,0.26448214,696.5,695.27,0.56396268]
[1735547586535,0.26448214,696.5,695.28,0.56396268]
[1735547586735,0.26448214,696.5,695.29,0.56396268]
[1735547586931,0.26448214,696.5,695.3,0.56396268]
[1735547587237,0.26448214,696.5,695.02,1.07441524]
[1735547587238,0.26448214,696.5,695.31,0.56427976]
[1735547587435,0.26448214,696.5,695.32,0.56427976]
[1735547587636,1.07116817,696.4,695.33,0.56427976]
[1735547587829,0.28719951,696.38,695.34,0.56427976]
[1735547588034,0.26450531,696.37,695.35,0.56427976]
[1735547588236,0.28721189,696.35,695.36,0.56427976]
[1735547588531,0.26450531,696.34,695.37,0.56427976]
[1735547588730,0.26450531,696.34,695.38,0.56427976]
[1735547588933,0.28722426,696.32,695.39,0.56427976]
[1735547589131,0.28722426,696.32,691.4,7.11229467]
[1735547589132,0.26450531,696.31,695.4,0.56427976]
[1735547589335,0.28723663,696.29,695.41,0.56427976]
[1735547589534,0.26449932,696.28,695.42,0.56427976]
[1735547589735,0.26449932,696.28,695.43,0.56427976]
[1735547589933,0.28724901,696.26,695.44,0.56427976]
[1735547590138,0.26449932,696.25,695.45,0.56427976]
[1735547590335,0.28725726,696.24,695.2,1.07441524]
[1735547590538,0.28725726,696.24,695.21,0.56451067]
[1735547590539,0.26449932,696.23,695.21,0.56451067]
[1735547590738,0.26449932,696.23,695.22,0.56451067]
[1735547590942,0.26449932,696.23,695.23,0.56454417]
[1735547591142,0.26449932,696.23,695.2,1.07441524]
[1735547591143,0.28726964,696.21,695.24,0.56454417]
[1735547591343,0.28726964,696.21,695.25,0.56454417]
[1735547591344,0.26449932,696.2,695.25,0.56454417]
[1735547591544,0.28728202,696.18,695.26,0.56454417]
[1735547591744,0.28728202,696.18,695.27,0.56454417]
[1735547592046,0.28728202,696.18,695.28,0.56454417]
[1735547592248,0.28728202,696.18,695.29,0.56454417]
[1735547592449,0.28728202,696.18,695.3,0.56454417]
[1735547592747,0.28728202,696.18,695.16,1.07441524]
[1735547592748,0.28728202,696.18,695.31,0.56454417]
[1735547593044,0.28728202,696.18,695.32,0.56454417]
[1735547593250,0.28728202,696.18,695.33,0.56454417]
[1735547593446,0.28728202,696.18,695.34,0.564402]
[1735547593647,0.28728202,696.18,695.35,0.564402]
[1735547593842,0.28728202,696.18,695.36,0.564402]
[1735547594147,0.28728202,696.18,695.37,0.564402]
[1735547594348,0.28728202,696.18,695.38,0.564402]
[1735547594544,0.28728202,696.18,695.39,0.564402]
[1735547594750,0.28728202,696.18,695.4,0.564402]
[1735547594948,0.28728202,696.18,695.41,0.564402]
[1735547595145,0.28728202,696.18,695.42,0.564402]
[1735547595347,0.28728202,696.18,695.43,0.564402]
[1735547595542,0.28728202,696.18,695.44,0.564402]
[1735547595750,0.28728202,696.18,695.45,0.564402]
[1735547596050,0.28728202,696.18,695.46,0.564402]
[1735547596246,0.28728202,696.18,695.47,0.564402]
[1735547596446,0.28728202,696.18,695.48,0.564402]
[1735547596651,0.28728202,696.18,695.49,0.564402]
[1735547596852,0.28728202,696.18,695.5,0.564402]
[1735547597052,0.28728202,696.18,695.51,0.564402]
[1735547597253,0.28728202,696.18,695.52,0.564402]
[1735547597453,0.28728202,696.18,695.53,0.564402]
[1735547597648,0.28728202,696.18,695.12,1.07441524]
[1735547597649,0.28728202,696.18,695.54,0.564402]
[1735547597847,0.28728202,696.18,695.55,0.564402]
[1735547598049,0.28728202,696.18,695.56,0.564402]
[1735547598250,0.28728202,696.18,695.57,0.564402]
[1735547598452,0.28728202,696.18,695.58,0.564402]
[1735547598654,0.28728202,696.18,695.59,0.564402]
[1735547598847,0.28728202,696.18,695.6,0.564402]
[1735547599053,0.28728202,696.18,695.61,0.564402]
[1735547599254,0.28728202,696.18,695.62,0.564402]
[1735547599450,0.28728202,696.18,695.63,0.56416851]
[1735547599655,0.28728202,696.18,695.64,0.56416851]
[1735547599956,0.28728202,696.18,695.14,1.07441524]
[1735547600156,0.28728202,696.18,695.15,0.56423245]
[1735547600348,0.28728202,696.18,695.16,0.56423245]
[1735547600551,0.28728202,696.18,695.17,0.56423245]
[1735547600748,0.28728202,696.18,695.18,0.56423245]
[1735547600948,0.28728202,696.18,695.19,0.56423245]
[1735547601150,0.28728202,696.18,695.2,0.56423245]
[1735547601455,0.28728202,696.18,695.21,0.56423245]
[1735547601655,0.28728202,696.18,695.22,0.56423245]
[1735547601859,0.28728202,696.18,695.23,0.56423245]
[1735547602150,0.28728202,696.18,695.24,0.56423245]
[1735547602355,0.28728202,696.18,695.25,0.56423245]
[1735547602555,0.28728202,696.18,695.26,0.56446]
[1735547602755,0.28728202,696.18,695.27,0.56446]
[1735547602957,0.28728202,696.18,695.28,0.56446]
[1735547603152,0.28728202,696.18,695.29,0.56446]
[1735547603454,0.28728202,696.18,695.3,0.56446]
[1735547603655,0.28728202,696.18,695.31,0.56446]
[1735547603850,0.28728202,696.18,695.34,1.07441524]
[1735547604053,0.28728202,696.18,695.35,0.56446]
[1735547604353,0.28728202,696.18,695.36,0.56446]
[1735547604553,0.28728202,696.18,695.37,0.56446]
[1735547604754,0.28728202,696.18,695.38,0.56446]
[1735547604955,0.28728202,696.18,695.39,0.56446]
[1735547605155,0.28728202,696.18,695.4,0.56446]
[1735547605358,0.28728202,696.18,695.41,0.56446]
[1735547605557,0.28728202,696.18,695.42,0.56458506]
[1735547605855,0.28728202,696.18,695.43,0.56458506]
[1735547606056,0.28728202,696.18,695.44,0.56458506]
[1735547606257,0.28728202,696.18,695.45,0.56458506]
[1735547606558,0.28728202,696.18,695.46,0.56458506]
[1735547606853,0.28728202,696.18,695.36,1.07441524]
[1735547606854,0.28728202,696.18,695.47,0.56458506]
[1735547607052,0.28728202,696.18,695.48,0.56458506]
[1735547607252,0.28728202,696.18,695.49,0.56458506]
[1735547607457,0.28728202,696.18,695.5,0.56458506]
[1735547607755,0.28728202,696.18,695.51,0.56458506]
[1735547607959,0.28728202,696.18,695.52,0.56458506]
[1735547608257,0.28728202,696.18,695.53,0.56458506]
[1735547608459,0.28728202,696.18,695.54,0.56458506]
[1735547608653,0.28728202,696.18,695.55,0.56477]
[1735547608858,0.28728202,696.18,695.56,0.56477]
[1735547609058,0.28728202,696.18,695.57,0.56477]
[1735547609253,0.28728202,696.18,695.58,0.56478656]
[1735547609456,0.28728202,696.18,695.59,0.56478656]
[1735547609656,0.28728202,696.18,695.6,0.56478656]
[1735547609858,0.28728202,696.18,695.61,0.56478656]
[1735547610159,0.28728202,696.18,695.62,0.56478656]
[1735547610355,0.28728202,696.18,695.63,0.56478656]
[1735547610559,0.28728202,696.18,695.64,0.56478656]
[1735547610759,0.28728202,696.18,695.65,0.56478656]
[1735547611055,0.28728202,696.18,695.66,0.56478656]
[1735547611262,0.28728202,696.18,695.67,0.56478656]
[1735547611460,0.28728202,696.18,695.68,0.56478656]
[1735547611652,0.28728202,696.18,695.69,0.56507952]
[1735547611858,0.28728202,696.18,695.7,0.56507952]
[1735547612061,0.28728202,696.18,695.71,0.56507952]
[1735547612256,0.28728202,696.18,694.74,1.28929829]
[1735547612257,0.28728202,696.18,695.72,0.56507952]